Cogmind - Beta 15 @@@ ROGUE MODE // 2025.09.17 @ 21:12:07 Player: shapeshifter Result: Destroyed by H-66 Slayer with Gauss Rifle Performance ------------- Evolutions (4) 2000 Regions Visited (14) 2800 Robots Destroyed (118) 590 Value Destroyed (3149) 3149 Prototype IDs (239) 4780 Alien Tech Used (0) 0 Bonus (3724) 3724 TOTAL SCORE: 17043 Bonus ------- Follower Combat Kills 124 Aligned with FarCom 300 Met Data Miner 300 Used Data Conduit 3000 Cogmind --------- Core Integrity 0/850 Matter 14/300 Energy 100/100 System Corruption 0% Temperature Cool (3) Movement Flying (35) Location -5/Proximity Caves Parts ------- > --- POWER (1) -------- (None) > --- PROPULSION (5) --- Improved VTOL Module > --- UTILITY (5) ------ Improved Utility Shielding > --- WEAPON (4) ------- (None) > --- INVENTORY (5) ---- System Mapper Deep Network Scanner Ghost Barrier XL Autogun Subcomponent Longsword +1 Peak State ------------ > --- POWER ------------ Ion Engine > --- PROPULSION ------- Armored Treads Advanced Treads Improved VTOL Module Improved VTOL Module Improved VTOL Module > --- UTILITY ---------- Kinecellerator Improved Propulsion Shielding Improved Utility Shielding > --- WEAPON ----------- XL Autogun Array > --- INVENTORY -------- Light Ion Engine Improved VTOL Module Improved VTOL Module Nuclear Pulse Thruster Longsword +1 [Rating: 67] Favorites ----------- Power Light Deuterium Engine Engine Light Deuterium Engine Power Core Micro Nuclear Core Propulsion Light Treads Treads Light Treads Leg Carbon-fiber Leg Flight Unit Improved VTOL Module Utility Large Storage Unit Device Seismic Detector Storage Large Storage Unit Processor 0b10 Alert Chip Hackware Hacking Suite Protection Core Shielding Weapon Enhanced Autogun Energy Gun Precision Beam Rifle Ballistic Gun Enhanced Autogun Launcher Rocket Launcher Special Weapon Plasma Cutter Slashing Weapon Longsword +1 Build | -11 -10 -10 -9 -9 -9 -8 -8 -8 -8 -6 -6 -6 -6 -5 ------- Run | Yrd Mat Min Mat Min Exi Min Mat Sto Rec Fac Low Low Dat Pro Slots Evolved 8 | . . . 2 . . . 2 . . 4 . . . . Power . | . . . . . . . . . . . . . . . Propulsion 3 | . . . . . . . 1 . . 2 . . . . Utility 3 | . . . 2 . . . . . . 1 . . . . Weapon 2 | . . . . . . . 1 . . 1 . . . . Parts Attached 86 | 7 1 . 5 6 1 3 14 36 3 5 . 2 3 . Power 9 | 1 . . 1 1 . . 2 2 1 1 . . . . Engine 7 | 1 . . 1 1 . . 1 1 1 1 . . . . Core 2 | . . . . . . . 1 1 . . . . . . Reactor . | . . . . . . . . . . . . . . . Propulsion 29 | 2 . . 1 . 1 1 4 14 2 3 . 1 . . Treads 17 | 2 . . 1 . 1 . . 12 1 . . . . . Leg 5 | . . . . . . . 4 1 . . . . . . Wheel . | . . . . . . . . . . . . . . . Hover . | . . . . . . . . . . . . . . . Flight 7 | . . . . . . 1 . 1 1 3 . 1 . . Utility 24 | 2 1 . 1 3 . 1 3 12 . . . . 1 . Device 9 | 1 . . . 2 . 1 1 4 . . . . . . Storage 2 | 1 1 . . . . . . . . . . . . . Processor 1 | . . . . . . . . 1 . . . . . . Hackware 2 | . . . . . . . . 2 . . . . . . Protection 10 | . . . 1 1 . . 2 5 . . . . 1 . Artifact . | . . . . . . . . . . . . . . . Weapon 24 | 2 . . 2 2 . 1 5 8 . 1 . 1 2 . Energy Gun 4 | . . . . . . . 1 3 . . . . . . Energy Cannon . | . . . . . . . . . . . . . . . Ballistic Gun 15 | 2 . . 2 . . 1 3 5 . . . 1 1 . Ballistic Cannon . | . . . . . . . . . . . . . . . Launcher 2 | . . . . 2 . . . . . . . . . . Special Weapon 1 | . . . . . . . . . . 1 . . . . Impact Weapon . | . . . . . . . . . . . . . . . Slashing Weapon 2 | . . . . . . . 1 . . . . . 1 . Piercing Weapon . | . . . . . . . . . . . . . . . Special Melee Weapon . | . . . . . . . . . . . . . . . Unidentified Prototypes 9 | . . . . . . 2 . 7 . . . . . . Parts Lost 27 | . . . 1 3 . . 11 2 . . . 4 5 1 Power 3 | . . . 1 . . . 1 . . . . . 1 . Propulsion 6 | . . . . . . . 2 . . . . 1 2 1 Utility 10 | . . . . 2 . . 3 1 . . . 2 2 . Weapon 8 | . . . . 1 . . 5 1 . . . 1 . . Highest Loss Streak 8 | . . . 1 2 . . 8 1 . . . 3 5 6 To Critical Strikes . | . . . . . . . . . . . . . . . Average Backups 11 | 3 5 10 14 14 13 12 10 11 11 10 11 10 8 5 Power 1 | . 2 3 2 1 2 1 . . . 1 2 2 1 . Propulsion 4 | 1 2 2 3 5 4 4 3 5 5 3 3 2 2 . Utility 3 | . . 3 4 4 4 3 3 3 2 1 1 1 1 3 Weapon 2 | . . 2 3 2 1 2 2 2 2 2 3 2 1 2 Tool/Special . | . . . . . . . . . . . . . . . Unused Backups 30 | 1 . 1 8 . 5 2 . 5 . . . 1 3 4 Power 8 | . . . 3 . 3 . . . . . . 1 1 . Propulsion 6 | . . . 2 . . 1 . 2 . . . . 1 . Utility 9 | . . 1 . . 1 1 . 3 . . . . . 3 Weapon 6 | 1 . . 3 . 1 . . . . . . . . 1 Tool/Special 1 | . . . . . . . . . . . . . 1 . Average Slot Usage (%) 89 | . 100 100 81 84 91 100 59 98 100 87 90 83 65 14 Engine 8 | . 14 14 10 11 11 11 6 4 9 6 6 6 5 . Treads 18 | . 28 28 22 22 22 22 4 23 19 . . 3 10 . Leg 2 | . . . . . . . 13 3 . . . . . . Flight 4 | . . . . . . . . . 7 32 33 29 16 7 Device 11 | . 14 14 11 19 22 22 1 9 9 6 10 5 1 . Storage 9 | . 14 14 11 11 11 11 9 9 9 6 6 6 3 . Processor 2 | . . . . . . . . 1 9 6 6 4 . . Hackware 1 | . . . . . . . . 6 . . . . . . Protection 7 | . . . 5 3 11 11 9 9 9 6 6 6 7 6 Energy Gun 1 | . . . . . . . 6 6 . . . . . . Ballistic Gun 16 | . 28 28 22 6 3 11 8 18 27 20 20 19 12 . Launcher 3 | . . . . 10 11 11 . . . . . . . . Peak Build Rating 67 | 7 7 9 13 16 22 34 31 45 45 63 65 65 67 15 Average Rating 28 | 5 7 8 11 15 18 24 22 38 43 57 62 52 47 11 On Entrance 27 | . 7 7 9 13 16 22 31 27 42 45 56 65 50 15 Naked Turns . | . . . . . . . . . . . . . . . Heaviest Build 48 | 13 28 28 34 35 33 35 48 47 44 37 37 40 40 2 Greatest Support 69 | 40 40 40 40 40 40 40 40 69 66 37 37 42 42 10 Greatest Overweight (x) 7 | 1 . . . . . . 7 1 . 1 1 . 1 . Average Overweight (x) . | . . . . . . . . . . . . . . . Largest Inventory Capacity 15 | 8 15 15 15 15 15 15 15 15 15 15 15 15 15 5 Average Capacity 14 | 7 13 15 15 15 15 15 15 15 15 15 15 15 11 5 Most Carried 15 | 5 7 12 15 15 15 15 15 15 15 14 15 15 15 5 Average Carried 13 | 3 5 10 14 14 14 14 13 14 14 13 14 12 10 5 Final Capacity 15 | 8 15 15 15 15 15 15 15 15 15 15 15 15 5 5 Final Carried 15 | 3 7 12 15 13 15 14 15 15 14 14 14 15 5 5 Class Distribution -------------------- 27% | Mutant 18% | Gunner 17% | Scavenger-Mutant 7% | Scavenger-Tank 7% | Commander-Gunner 7% | Scavenger-Skirmisher 4% | Skirmisher 3% | Tank Dominant Class ---------------- Mutant | -10/Materials Mutant | -10/Mines Mutant | -9/Materials Scavenger-Mutant | -9/Mines Scavenger-Mutant | -9/Exiles Scavenger-Skirmisher | -8/Mines Mutant | -8/Materials Gunner | -8/Storage Gunner | -8/Recycling Commander-Tank | -6/Factory Sprinter | -6/Lower Caves Tank | -6/Lower Caves Tank | -6/Data Miner Mutant | -5/Proximity Caves Resources | -11 -10 -10 -9 -9 -9 -8 -8 -8 -8 -6 -6 -6 -6 -5 ----------- Run | Yrd Mat Min Mat Min Exi Min Mat Sto Rec Fac Low Low Dat Pro Matter Collected 3564 | 237 . 215 105 197 . 248 555 1118 483 127 95 155 29 . Remotely . | . . . . . . . . . . . . . . . Salvage Created 4599 | 37 . . 292 346 . 189 645 1794 814 238 118 97 29 . Parts 251 | 3 . . 25 30 . 14 29 92 37 6 7 5 3 . Haulers Intercepted 8 | . . . . . . . 2 6 . . . . . . Recyclers Shooed 6 | . . . . 1 . . 3 . 2 . . . . . Parts Field Recycled . | . . . . . . . . . . . . . . . Retrieved Matter . | . . . . . . . . . . . . . . . Parts Self-Destructed 12 | . . . . . . . . . . . 11 1 . . Prevented 2 | . . . . . . . . . . . . . . 2 Kills | -11 -10 -10 -9 -9 -9 -8 -8 -8 -8 -6 -6 -6 -6 -5 ------- Run | Yrd Mat Min Mat Min Exi Min Mat Sto Rec Fac Low Low Dat Pro Combat Hostiles Destroyed 75 | . . . 7 11 . 7 10 26 9 1 2 2 . . Guns 54 | . . . 7 . . . 7 26 9 1 2 2 . . AOE 21 | . . . . 11 . 7 3 . . . . . . . Classes Destroyed 17 | 1 . . 4 3 . 1 2 1 3 1 . 1 . . Worker 6 | . . . 2 2 . . . 2 . . . . . . Builder 2 | . . . . 2 . . . . . . . . . . Tunneler 8 | 2 . . . 4 . . 1 . . . 1 . . . Hauler 9 | . . . . . . . 2 6 . 1 . . . . Recycler 11 | . . . . 2 . 1 1 2 5 . . . . . Operator 3 | . . . . . . . 1 2 . . . . . . Watcher 3 | . . . . . . . . 2 . 1 . . . . Swarmer 13 | . . . 3 3 . 3 . 4 . . . . . . Grunt 33 | . . . 2 6 . 3 9 10 1 . 2 . . . Brawler 1 | . . . . . . . . . 1 . . . . . Protector 1 | . . . . . . . . . 1 . . . . . Sentry 21 | . . . 2 . . . 1 12 5 1 . . . . Demolisher 2 | . . . . . . . . . . 2 . . . . Hunter 2 | . . . . . . 1 . . . . . 1 . . Programmer 1 | . . . . . . . . . 1 . . . . . Master Thief 1 | . . . . . . . . . . . . 1 . . Assembled 2 | . . . . 2 . . . . . . . . . . Best Kill Streak 10 | 1 . . 4 8 . 4 2 10 7 2 2 1 1 . Combat Bots Only 8 | . . . 4 4 . 3 2 8 7 1 2 1 . . Max Kills in Single Turn 3 | 1 . . 2 3 . 2 2 2 2 1 2 1 1 . Gunslinging 1 | . . . 1 . . . . . . . . . . . Exploded 2 | . . . . 2 . 2 2 . . . . . . . Melee . | . . . . . . . . . . . . . . . Uniques/NPCs Destroyed 1 | . . . . . . . . . . . . . 1 . Data Miner (-6/Data Miner) Combat | -11 -10 -10 -9 -9 -9 -8 -8 -8 -8 -6 -6 -6 -6 -5 -------- Run | Yrd Mat Min Mat Min Exi Min Mat Sto Rec Fac Low Low Dat Pro Hostile Shots Fired 514 | . . . 55 19 . 23 113 106 17 9 22 46 56 48 Missed 165 | . . . 10 3 . 4 33 26 5 5 12 15 26 26 Hits 349 | . . . 45 16 . 19 80 80 12 4 10 31 30 22 Melee 11 | . . . . 2 . . 1 . . . . 8 . . Projectile 338 | . . . 45 14 . 19 79 80 12 4 10 23 30 22 AOE 1 | . . . . . . . . . 1 . . . . . Critical Strikes 16 | . . . 4 . . 2 3 7 . . . . . . Part Disruptions 1 | . . . . . . . . . . . . . 1 . Damage Taken 6155 | . . . 474 375 . 250 1346 1105 188 30 204 462 1348 373 Core 1439 | . . . 39 28 . 62 241 199 13 . 77 81 391 308 Absorbed by Shields 30 | . . . . . . . . 8 13 . 9 . . . Redirected to Shielding 363 | . . . . . . 14 31 108 . . 21 71 118 . Ignored by Resistances 92 | . . . . . . . . 92 . . . . . . Core Remaining (%) 71 | 100 . 100 . . . 67 . . 17 . . . . . Volleys Fired 284 | 5 1 . 24 24 . 9 59 97 22 4 7 23 9 . Largest 3 | 2 2 . 2 1 . 2 3 3 3 3 3 3 1 . Hottest 147 | 40 40 . 40 33 . 58 90 147 75 75 75 78 60 . Shots Fired 589 | 10 2 . 48 24 . 12 107 223 66 12 21 55 9 . Gun 553 | 10 2 . 48 . . 3 104 223 66 12 21 55 9 . Cannon . | . . . . . . . . . . . . . . . Launcher 36 | . . . . 24 . 9 3 . . . . . . . Special . | . . . . . . . . . . . . . . . Kinetic 485 | 10 2 . 48 . . 3 86 173 66 12 21 55 9 . Thermal 68 | . . . . . . . 18 50 . . . . . . Explosive 36 | . . . . 24 . 9 3 . . . . . . . Electromagnetic . | . . . . . . . . . . . . . . . Robot Hit Streak 25 | 3 1 . 22 8 . 2 10 25 9 5 5 7 8 . Robot Miss Streak 4 | 3 1 . 4 1 . 3 2 4 3 2 4 3 3 . Penetration Max 1 | . . . . . . . 1 . . . . . . . Secondary Targets 6 | . . . 2 . . . . 2 1 . . 1 . . Max Gunslinging Chain 1 | . . . 1 . . . . 1 1 . . 1 . . Shots Hit Robots 380 | 5 1 . 34 9 . 5 73 154 32 12 12 33 10 . Core Hits 204 | 4 . . 15 26 . 16 30 67 18 8 8 7 5 . Critical Kills 2 | 1 . . . . . . . 1 . . . . . . Critical Parts Destroyed 1 | . . . . . . . . 1 . . . . . . Critical Strikes 9 | 1 . . . . . . 2 6 . . . . . . Burn 5 | . . . . . . . 1 4 . . . . . . Destroy 3 | 1 . . . . . . . 2 . . . . . . Sever 1 | . . . . . . . 1 . . . . . . . Melee Attacks 9 | . . . . . . . 1 3 . 4 . . 1 . Impact . | . . . . . . . . . . . . . . . Slashing 9 | . . . . . . . 1 3 . 4 . . 1 . Piercing . | . . . . . . . . . . . . . . . Sneak Attacks 5 | . . . . . . . . . . 4 . . 1 . Combat Hostiles . | . . . . . . . . . . . . . . . Follow-up Attacks . | . . . . . . . . . . . . . . . Damage Inflicted 9519 | 40 8 . 297 1242 . 712 1572 2671 736 518 319 467 937 . Guns 6789 | 40 8 . 297 . . 25 1283 2671 736 138 319 467 805 . Cannons . | . . . . . . . . . . . . . . . Explosions 2162 | . . . . 1242 . 687 233 . . . . . . . Melee 564 | . . . . . . . 52 . . 380 . . 132 . Ramming 4 | . . . . . . . 4 . . . . . . . Kinetic 6025 | 40 8 . 297 . . 25 1151 2039 736 138 319 467 805 . Thermal 764 | . . . . . . . 132 632 . . . . . . Explosive 2162 | . . . . 1242 . 687 233 . . . . . . . Electromagnetic . | . . . . . . . . . . . . . . . Impact . | . . . . . . . . . . . . . . . Slashing 564 | . . . . . . . 52 . . 380 . . 132 . Piercing . | . . . . . . . . . . . . . . . Highest Corruption 3 | . . . . . . . 1 1 3 . . . . . Average Corruption 1 | . . . . . . . 1 1 2 . . . . . Corruption Purged . | . . . . . . . . . . . . . . . Corruption Blocked . | . . . . . . . . . . . . . . . Effects 45 | . . . . . . . 4 20 21 . . . . . Message Errors 9 | . . . . . . . 1 4 4 . . . . . Matter Fused 5 | . . . . . . . . 2 3 . . . . . Heat Flow Errors 10 | . . . . . . . 1 5 4 . . . . . Energy Discharges 7 | . . . . . . . 1 4 2 . . . . . Parts Fused 1 | . . . . . . . . . 1 . . . . . Data Loss (minor) 10 | . . . . . . . . 3 7 . . . . . Data Loss (major) 1 | . . . . . . . 1 . . . . . . . Alerts 1 | . . . . . . . . 1 . . . . . . Weapon Failures 1 | . . . . . . . . 1 . . . . . . Overload Shots . | . . . . . . . . . . . . . . . Overflow Damage 50 | . . . . 36 . . 6 . . 8 . . . . Projectiles . | . . . . . . . . . . . . . . . Explosions 42 | . . . . 36 . . 6 . . . . . . . Melee 8 | . . . . . . . . . . 8 . . . . Knockbacks . | . . . . . . . . . . . . . . . Impact . | . . . . . . . . . . . . . . . Kinetic . | . . . . . . . . . . . . . . . Secondary . | . . . . . . . . . . . . . . . Self-Inflicted Damage 306 | . . . . 179 . . 127 . . . . . . . Shots 9 | . . . . 6 . . 3 . . . . . . . Rammed . | . . . . . . . . . . . . . . . Targets Rammed 3 | . . . . . . . 3 . . . . . . . Kicked 3 | . . . . . . . 3 . . . . . . . Crushed . | . . . . . . . . . . . . . . . Highest Temperature 434 | . . . 24 3 . 28 434 422 256 73 150 90 240 . Average Temperature 82 | . . . 5 3 . 14 108 89 73 41 64 30 110 . Received Heat Transfer 1637 | . . . 132 45 . 90 639 606 46 6 55 . . 18 Effects 4 | . . . . . . . 1 3 . . . . . . Energy Bleed 3 | . . . . . . . 1 2 . . . . . . Short Circuit 1 | . . . . . . . . 1 . . . . . . Siege Activations . | . . . . . . . . . . . . . . . Martial Activations . | . . . . . . . . . . . . . . . Shielding Activations . | . . . . . . . . . . . . . . . Robots Disrupted . | . . . . . . . . . . . . . . . Combat Hostiles . | . . . . . . . . . . . . . . . Robots Corrupted . | . . . . . . . . . . . . . . . Combat Hostiles . | . . . . . . . . . . . . . . . Parts Fried . | . . . . . . . . . . . . . . . Impact Corruptions . | . . . . . . . . . . . . . . . Robots Melted . | . . . . . . . . . . . . . . . Combat Hostiles . | . . . . . . . . . . . . . . . Parts Melted 13 | . . . . . . . . 13 . . . . . . Heat Transferred 2072 | . . . . . . . 407 1665 . . . . . . Parts Sabotaged . | . . . . . . . . . . . . . . . Parts Stolen 4 | . . . . . . . . . . . . 4 . . Parts Stripped . | . . . . . . . . . . . . . . . Power Chain Reactions . | . . . . . . . . . . . . . . . Alert | -11 -10 -10 -9 -9 -9 -8 -8 -8 -8 -6 -6 -6 -6 -5 ------- Run | Yrd Mat Min Mat Min Exi Min Mat Sto Rec Fac Low Low Dat Pro Maximum Alert Level 1 | . . . . . . . . 1 . . . . . . Low Security (%) 81 | 100 100 100 100 100 . 100 100 21 100 100 . . . . Level 1 18 | . . . . . . . . 78 . . . . . . Level 2 . | . . . . . . . . . . . . . . . Level 3 . | . . . . . . . . . . . . . . . Level 4 . | . . . . . . . . . . . . . . . Level 5 . | . . . . . . . . . . . . . . . High Security . | . . . . . . . . . . . . . . . Max Security . | . . . . . . . . . . . . . . . Peak Influence 395 | 5 15 . 110 182 . 98 60 395 138 50 . . . . Initial 138 | . . . . 31 . . . 20 138 50 . . . . Average 96 | . 1 . 42 73 . 25 13 305 45 15 . . . . Influence Increases 2735 | 10 21 . 229 387 . 238 335 907 270 92 85 36 20 105 Destroy 0b10 Robot/C 1448 | . . . 140 180 . 140 200 512 176 16 48 16 20 . Destroy 0b10 Robot/NC 217 | 10 . . 10 50 . 5 25 69 44 4 . . . . Destroy Leader 314 | . . . 40 20 . 30 44 162 . 10 . 8 . . Allied During Kill 18 | . . . . . . . . . 17 . 1 . . . Successful Hack 94 | . 6 . 9 . . . 24 41 14 . . . . . Disable Machine 75 | . . . . 15 . . . 60 . . . . . . Destroy Structure 219 | . . . . 107 . 63 27 3 19 . . . . . Advance Influence 50 | . . . . . . . . . . 50 . . . . Partial Spotted 12 | . . . . . . . . . . 12 . . . . Lose Combat Pursuer 288 | . 15 . 30 15 . . 15 60 . . 36 12 . 105 Influence Decreases 2660 | 10 21 . 149 377 90 238 287 600 625 92 59 62 20 30 Entered New Map 390 | . . . . 49 90 . . 28 217 . . 6 . . Time Decay 2047 | 10 21 . 139 298 . 238 231 552 368 92 22 36 10 30 Lost Part 146 | . . . 10 30 . . 56 20 . . . 20 10 . Lost Ally 77 | . . . . . . . . . 40 . 37 . . . Squads Dispatched 7 | . 1 . 2 . . . 3 1 . . . . . . Investigation 2 | . 1 . . . . . 1 . . . . . . . Extermination . | . . . . . . . . . . . . . . . Reinforcement 5 | . . . 2 . . . 2 1 . . . . . . Assault . | . . . . . . . . . . . . . . . Garrison . | . . . . . . . . . . . . . . . Intercept . | . . . . . . . . . . . . . . . Searches Triggered . | . . . . . . . . . . . . . . . Construction Impeded . | . . . . . . . . . . . . . . . Haulers Reinforced . | . . . . . . . . . . . . . . . Active Scanning Responses . | . . . . . . . . . . . . . . . Cargo Convoy Interrupts . | . . . . . . . . . . . . . . . Stealth | -11 -10 -10 -9 -9 -9 -8 -8 -8 -8 -6 -6 -6 -6 -5 --------- Run | Yrd Mat Min Mat Min Exi Min Mat Sto Rec Fac Low Low Dat Pro Distress Signals 9 | . 1 . . 2 . . 2 4 . . . . . . Communications Jammed . | . . . . . . . . . . . . . . . Distress Signals . | . . . . . . . . . . . . . . . Times Spotted 132 | . 2 . 11 9 . 7 17 37 10 2 8 5 4 20 Peak Tracking Total 9 | . 2 . 4 2 . 3 3 6 3 1 4 4 4 9 Tactical Retreats 12 | . 1 . 2 1 . . 1 3 . . 1 1 . 2 Traps | -11 -10 -10 -9 -9 -9 -8 -8 -8 -8 -6 -6 -6 -6 -5 ------- Run | Yrd Mat Min Mat Min Exi Min Mat Sto Rec Fac Low Low Dat Pro Traps Triggered 2 | . 1 . . . . . . 1 . . . . . . Indirectly . | . . . . . . . . . . . . . . . Trap Hack Attempts . | . . . . . . . . . . . . . . . Triggered . | . . . . . . . . . . . . . . . Disarmed . | . . . . . . . . . . . . . . . Reprogrammed . | . . . . . . . . . . . . . . . Reused . | . . . . . . . . . . . . . . . Traps Extracted . | . . . . . . . . . . . . . . . Installed . | . . . . . . . . . . . . . . . Triggered . | . . . . . . . . . . . . . . . Machines | -11 -10 -10 -9 -9 -9 -8 -8 -8 -8 -6 -6 -6 -6 -5 ---------- Run | Yrd Mat Min Mat Min Exi Min Mat Sto Rec Fac Low Low Dat Pro Machines Disabled 5 | . . . . 1 . . . 4 . . . . . . Max in Single Turn 1 | . . . . 1 . . . 1 . . . . . . Garrison Access 1 | . . . . . . . . . . 1 . . . . Machines Repaired . | . . . . . . . . . . . . . . . Machines Dismantled . | . . . . . . . . . . . . . . . Machines Sabotaged . | . . . . . . . . . . . . . . . Overloaded Fab Kills . | . . . . . . . . . . . . . . . Hacking | -11 -10 -10 -9 -9 -9 -8 -8 -8 -8 -6 -6 -6 -6 -5 --------- Run | Yrd Mat Min Mat Min Exi Min Mat Sto Rec Fac Low Low Dat Pro Machines Accessed 35 | . 1 . 1 . 2 . 3 12 11 2 . . 3 . Terminals 23 | . 1 . 1 . . . 3 12 6 . . . . . Fabricators . | . . . . . . . . . . . . . . . Repair Stations . | . . . . . . . . . . . . . . . Recycling Units 5 | . . . . . . . . . 5 . . . . . Scanalyzers 1 | . . . . . . . . . . 1 . . . . Garrison Access 1 | . . . . . . . . . . 1 . . . . Total Hacks 95 | . 4 . 4 . 2 . 10 24 26 2 . . 23 . Successful 66 | . 3 . 2 . 2 . 6 16 13 1 . . 23 . Failed 29 | . 1 . 2 . . . 4 8 13 1 . . . . Catastrophic 4 | . . . . . . . 2 . 2 . . . . . Database Lockouts . | . . . . . . . . . . . . . . . Manual 49 | . 4 . 4 . 1 . 10 12 18 . . . . . Terminals 61 | . 4 . 4 . . . 10 24 19 . . . . . Fabricators . | . . . . . . . . . . . . . . . Repair Stations . | . . . . . . . . . . . . . . . Recycling Units 7 | . . . . . . . . . 7 . . . . . Scanalyzers 1 | . . . . . . . . . . 1 . . . . Garrison Access 1 | . . . . . . . . . . 1 . . . . Terminal Hacks 41 | . 1 . . . 2 . 2 10 3 . . . 23 . Record 7 | . . . . . 1 . . . . . . . 6 . Part Schematic 9 | . . . . . . . . . 1 . . . 8 . Robot Schematic 6 | . . . . . . . . . . . . . 6 . Prototype ID Bank 3 | . . . . . . . . . . . . . 3 . Open Door 5 | . . . . . . . . 5 . . . . . . Branch Access Points 2 | . . . . . . . 1 1 . . . . . . Registered Components 1 | . . . . . . . . 1 . . . . . . Zone Layout 7 | . 1 . . . . . 1 3 2 . . . . . Proto ID Catalog 1 | . . . . . 1 . . . . . . . . . Fabricator Hacks . | . . . . . . . . . . . . . . . Repair Station Hacks . | . . . . . . . . . . . . . . . Recycling Unit Hacks 5 | . . . . . . . . . 5 . . . . . Retrieve Components 5 | . . . . . . . . . 5 . . . . . Scanalyzer . | . . . . . . . . . . . . . . . Garrison Access Hacks 1 | . . . . . . . . . . 1 . . . . Seal Access 1 | . . . . . . . . . . 1 . . . . Unauthorized Hacks 19 | . 2 . 2 . . . 4 6 5 . . . . . Terminals 19 | . 2 . 2 . . . 4 6 5 . . . . . Botnet 5 | . 1 . 1 . . . 2 1 . . . . . . Skim 14 | . 1 . 1 . . . 2 5 5 . . . . . Fabricators . | . . . . . . . . . . . . . . . Repair Stations . | . . . . . . . . . . . . . . . Recycling Units . | . . . . . . . . . . . . . . . Scanalyzers . | . . . . . . . . . . . . . . . Garrison Access . | . . . . . . . . . . . . . . . Data Cores Recovered 1 | . . . . . . . . 1 . . . . . . Used 1 | . . . . . . . . 1 . . . . . . Hacking Detections 19 | . 1 . 1 . . . 2 8 6 1 . . . . Full Trace Events 2 | . . . . . . . 1 . 1 . . . . . Feedback Events 2 | . . . . . . . 1 . 1 . . . . . Corruption 2 | . . . . . . . 1 . 1 . . . . . Feedback Blocked . | . . . . . . . . . . . . . . . Robot Schematics Acquired 6 | . . . . . . . . . . . . . 6 . Robots Built . | . . . . . . . . . . . . . . . Authchips . | . . . . . . . . . . . . . . . Time . | . . . . . . . . . . . . . . . Total Robot Build Rating . | . . . . . . . . . . . . . . . Part Schematics Acquired 9 | . . . . . . . . . 1 . . . 8 . Parts Built . | . . . . . . . . . . . . . . . Authchips . | . . . . . . . . . . . . . . . Time . | . . . . . . . . . . . . . . . Total Part Build Rating . | . . . . . . . . . . . . . . . Parts Repaired . | . . . . . . . . . . . . . . . Time . | . . . . . . . . . . . . . . . Parts Recycled . | . . . . . . . . . . . . . . . Recycled Matter . | . . . . . . . . . . . . . . . Retrieved Matter . | . . . . . . . . . . . . . . . Retrieved Components 9 | . . . . . . . . . 9 . . . . . Parts Scanalyzed . | . . . . . . . . . . . . . . . Part Schematics Acquired . | . . . . . . . . . . . . . . . Parts Damaged . | . . . . . . . . . . . . . . . Bothacking | -11 -10 -10 -9 -9 -9 -8 -8 -8 -8 -6 -6 -6 -6 -5 ------------ Run | Yrd Mat Min Mat Min Exi Min Mat Sto Rec Fac Low Low Dat Pro Used RIF Installer . | . . . . . . . . . . . . . . . Robots Hacked . | . . . . . . . . . . . . . . . Non-combat . | . . . . . . . . . . . . . . . Combat . | . . . . . . . . . . . . . . . Robot Hacks Applied . | . . . . . . . . . . . . . . . Relay Couplers Released . | . . . . . . . . . . . . . . . Fabnet Peak Effective % . | . . . . . . . . . . . . . . . Robots Rewired 13 | . . . . . . . . . 13 . . . . . Allies Hacked . | . . . . . . . . . . . . . . . Hacks Repelled . | . . . . . . . . . . . . . . . Allies | -11 -10 -10 -9 -9 -9 -8 -8 -8 -8 -6 -6 -6 -6 -5 -------- Run | Yrd Mat Min Mat Min Exi Min Mat Sto Rec Fac Low Low Dat Pro Total Allies 15 | . . . . 2 . . . . 13 . . . . . Largest Group 11 | . . . . 2 2 . . . 11 11 5 . . . Highest-Rated Group 207 | . . . . 46 46 . . . 207 207 104 . . . Highest-Rated Ally 34 | . . . . 31 31 . . . 34 34 27 . . . Total Orders . | . . . . . . . . . . . . . . . Ally Attacks 5 | . . . . . . . . . 3 . 2 . . . Total Damage 599 | . . . . . . . . . 537 . 62 . . . Kills 5 | . . . . . . . . . 4 . 1 . . . Allies Corrupted 2 | . . . . . . . . . . . 2 . . . Allies Melted . | . . . . . . . . . . . . . . . Intel | -11 -10 -10 -9 -9 -9 -8 -8 -8 -8 -6 -6 -6 -6 -5 ------- Run | Yrd Mat Min Mat Min Exi Min Mat Sto Rec Fac Low Low Dat Pro Active Infowar (turns) 3531 | 15 207 622 381 875 526 779 42 . . . 54 30 . . Sensors 292 | . . . . . . 196 12 . . . 54 30 . . Terrain 2146 | . . . . 799 526 779 42 . . . . . . . Seismic 3197 | 15 207 622 381 863 526 583 . . . . . . . . Robot Analysis Total 151 | . . . . . . . . . . . . . 151 . Derelict Logs Recovered 3 | . . 1 . 2 . . . . . . . . . . Drone Launches . | . . . . . . . . . . . . . . . Drone Recoveries . | . . . . . . . . . . . . . . . Exploration | -11 -10 -10 -9 -9 -9 -8 -8 -8 -8 -6 -6 -6 -6 -5 ------------- Run | Yrd Mat Min Mat Min Exi Min Mat Sto Rec Fac Low Low Dat Pro Turns Passed 8237 | 149 207 622 381 916 526 779 838 1673 1282 308 76 223 191 66 Spaces Moved 4883 | 89 121 384 175 527 322 467 368 697 704 242 183 274 140 190 Core 32 | 22 . . . . . . 10 . . . . . . . Treads 3576 | 67 121 384 175 527 322 467 79 615 704 . . 31 84 . Legs 361 | . . . . . . . 279 82 . . . . . . Wheels . | . . . . . . . . . . . . . . . Hover . | . . . . . . . . . . . . . . . Flight 914 | . . . . . . . . . . 242 183 243 56 190 Fastest Speed 23 | 50 160 160 160 160 160 160 120 120 157 23 23 23 23 32 Average Speed 135 | 133 160 160 160 160 160 160 171 155 157 36 31 38 107 34 Slowest Speed 400 | 160 160 160 160 160 160 160 400 240 163 93 93 157 157 35 Overloaded Moves . | . . . . . . . . . . . . . . . Propulsion Burnouts . | . . . . . . . . . . . . . . . Robots Hopped . | . . . . . . . . . . . . . . . Potential Cave-ins 1 | . . . . . . 1 . . . . . . . . Cave-ins Triggered . | . . . . . . . . . . . . . . . Exploration Rate (%) 54 | 5 29 88 23 97 69 88 31 93 91 5 41 41 80 33 Regions Visited 14 Branch Regions 10 Pre-discovered Areas 30 | . . 2 . . 1 . . . 2 . . . 25 . Known Exits Taken 5 | . . . . . . . 1 1 1 1 1 . . . Unknown Exits Taken 9 | 1 1 1 1 1 1 1 . . . . . 1 1 . Scrap Searched 8 | . . 2 . 1 . 1 . . . . 1 2 . 1 Spaces Dug . | . . . . . . . . . . . . . . . Terrain Destroyed 255 | . . . . 142 . 82 29 . . . . 1 1 . Melee . | . . . . . . . . . . . . . . . Projectile 2 | . . . . . . . . . . . . 1 1 . AOE 253 | . . . . 142 . 82 29 . . . . . . . Terrain Rammed . | . . . . . . . . . . . . . . . Walls Destroyed . | . . . . . . . . . . . . . . . Machines Disabled . | . . . . . . . . . . . . . . . Actions | -11 -10 -10 -9 -9 -9 -8 -8 -8 -8 -6 -6 -6 -6 -5 --------- Run | Yrd Mat Min Mat Min Exi Min Mat Sto Rec Fac Low Low Dat Pro Total 6138 | 110 133 392 242 575 335 488 491 1132 858 453 192 363 184 190 Wait 574 | . 5 2 15 16 . 3 25 231 32 190 1 54 . . Move 4869 | 88 120 383 174 526 321 466 367 696 703 241 182 273 139 190 Hop . | . . . . . . . . . . . . . . . Pick Up 89 | 9 5 6 13 1 6 2 13 17 1 2 1 6 7 . Fast Attach 27 | 2 . . 2 2 . 1 . 17 1 . . 1 1 . Attach 44 | 5 . . . 3 1 1 13 6 2 5 1 2 5 . Detach 9 | . . . . . . . 3 2 . 3 . . 1 . Swap 47 | . 1 . 3 1 1 2 3 25 1 4 . 2 4 . Drop 91 | 1 1 1 11 2 6 4 4 38 4 . . 2 17 . Fire 284 | 5 1 . 24 24 . 9 59 97 22 4 7 23 9 . Melee 9 | . . . . . . . 1 3 . 4 . . 1 . Ram . | . . . . . . . . . . . . . . . Kick 3 | . . . . . . . 3 . . . . . . . Crush . | . . . . . . . . . . . . . . . Escape Stasis . | . . . . . . . . . . . . . . . Rewire 92 | . . . . . . . . . 92 . . . . . Trap . | . . . . . . . . . . . . . . . Miscellaneous . | . . . . . . . . . . . . . . . Route ------- -11/Scrapyard -10/Materials -10/Mines -9/Materials -9/Mines (discovered 3 exits: *Mat x2 / *Exi) -9/Exiles -8/Mines (discovered 2 exits: *Mat x2) -8/Materials (discovered 4 exits: *Fac x3 / *Sto) -8/Storage (discovered 2 exits: *Fac / *Rec) -8/Recycling (discovered 2 exits: *Fac / Scr) -6/Factory (discovered 8 exits: Fac x4 / *Low x2 / Ext x2) -6/Lower Caves -6/Lower Caves (discovered 2 exits: *Fac / *Dat) -6/Data Miner -5/Proximity Caves (discovered 1 exit: Fac) History --------- Turn | Location | Event 3 | -11/Scrapyard | Discovered new exit (range 15) 150 | -11/Scrapyard | Entered Materials 301 | -10/Materials | Build established: Mutant 313 | -10/Materials | Discovered new exit (range 15) 357 | -10/Materials | Entered Mines 442 | -10/Mines | Learned location of Recycling (-8) 546 | -10/Mines | Learned location of Storage (-8) 627 | -10/Mines | Found a damaged Exp. Sensor Array with a note attached 630 | -10/Mines | Found Prototype Device 961 | -10/Mines | Discovered new exit (range 10) 979 | -10/Mines | Entered Materials 979 | -9/Materials | Evolved 2 slots: Utility x2 1347 | -9/Materials | Discovered new exit (range 9) 1360 | -9/Materials | Entered Mines 1402 | -9/Mines | Excavation squad dispatched 1402 | -9/Mines | A large section of the Mines collapsed 1613 | -9/Mines | Discovered new exit (range 8) 1776 | -9/Mines | Build established: Scavenger-Mutant 1827 | -9/Mines | Deemed a non-threat by the Exiles lab entrance 1827 | -9/Mines | Discovered new exit (range 5) 1941 | -9/Mines | Learned 2 Materials zone layouts 2162 | -9/Mines | Discovered new exit (range 3) 2276 | -9/Mines | Entered Exiles 2276 | -9/Exiles | Accompanied by 2 allies 2306 | -9/Exiles | Led the pair of lost Derelicts to a safe place 2323 | -9/Exiles | Met 8R-AWN 2347 | -9/Exiles | Met EX-HEX 2425 | -9/Exiles | Met EX-DEC 2453 | -9/Exiles | Learned location of Zion (-7) 2563 | -9/Exiles | Met EX-BIN 2585 | -9/Exiles | Aligned with FarCom system 2587 | -9/Exiles | Given EX-Vault access code 2624 | -9/Exiles | Opened EX-Vault 2634 | -9/Exiles | Found 0b10 Alert Chip 2641 | -9/Exiles | Found Longsword +1 2653 | -9/Exiles | Found XL Autogun Array 2685 | -9/Exiles | Warned to stay clear of 0b10 Research branches 2784 | -9/Exiles | Discovered new exit (range 14) 2802 | -9/Exiles | Stole three prototypes: 0b10 Alert Chip, XL Autogun Array, Longsword +1 2802 | -9/Exiles | Entered Mines 2862 | -8/Mines | Discovered new exit (range 14) 2918 | -8/Mines | Discovered new exit (range 10) 3092 | -8/Mines | Build established: Scavenger-Skirmisher 3385 | -8/Mines | Identified Exp. Sensor Array 3581 | -8/Mines | Entered Materials 3581 | -8/Materials | Evolved 2 slots: Propulsion x1, Weapon x1 3581 | -8/Materials | Discovered new exit (range 7) 3582 | -8/Materials | Identified exit to Factory 3776 | -8/Materials | Discovered exit to Factory (range 8) 3816 | -8/Materials | Lost 8 parts (1p2n1u4w) 3867 | -8/Materials | Identified exit to Storage 4067 | -8/Materials | Build established: Mutant 4419 | -8/Materials | Entered Storage 4421 | -8/Storage | FarCom data flow suspended 4792 | -8/Storage | Core integrity fell below 50% 4847 | -8/Storage | Destroyed 8 combat bots 4911 | -8/Storage | Build established: Scavenger-Tank 5084 | -8/Storage | Identified exit to Recycling 5128 | -8/Storage | Discovered exit to Factory (range 16) 5687 | -8/Storage | Build established: Gunner 5976 | -8/Storage | Used back door to open Recycling access 5981 | -8/Storage | Learned 4 Factory zone layouts 6052 | -8/Storage | Learned location of 1 exit from Lower Caves 6053 | -8/Storage | Learned 4 Factory zone layouts 6055 | -8/Storage | Learned Factory trap positions 6085 | -8/Storage | Learned 4 Recycling zone layouts 6092 | -8/Storage | Entered Recycling 6093 | -8/Recycling | Identified exit to Factory 6734 | -8/Recycling | Destroyed 7 combat bots 6863 | -8/Recycling | Core integrity fell below 20% 7024 | -8/Recycling | Learned location of Extension (-6) 7082 | -8/Recycling | Build established: Commander-Gunner 7170 | -8/Recycling | Identified exit to Scraptown 7273 | -8/Recycling | Learned Factory garrison access intel 7374 | -8/Recycling | Entered Factory 7374 | -6/Factory | Accompanied by 11 allies 7374 | -6/Factory | Evolved 4 slots: Propulsion x2, Utility x1, Weapon x1 7375 | -6/Factory | Identified exit to Factory 7375 | -6/Factory | Identified exit to Lower Caves 7375 | -6/Factory | Identified exit to Extension 7377 | -6/Factory | Loaded intel: 78 trap records 7378 | -6/Factory | Loaded intel: 4 garrison access locations 7606 | -6/Factory | Lost 3 allies 7682 | -6/Factory | Entered Lower Caves 7682 | -6/Lower Caves | Accompanied by 5 allies 7683 | -6/Lower Caves | Identified exit to Lower Caves 7723 | -6/Lower Caves | Lost 4 allies 7725 | -6/Lower Caves | Spotted B-75 Beast 7758 | -6/Lower Caves | Entered another Lower Caves area 7822 | -6/Lower Caves | Lost 3 parts (1n1u1w) 7902 | -6/Lower Caves | Spotted G8-DZQ(f) 7902 | -6/Lower Caves | Spotted H5-O7N(f) 7904 | -6/Lower Caves | Encountered a Master Thief 7904 | -6/Lower Caves | Encountered a Master Thief 7910 | -6/Lower Caves | Spotted WM-CJJ(f) 7911 | -6/Lower Caves | Encountered a Master Thief 7914 | -6/Lower Caves | Gravity Neutralizer stolen by Master Thief 7916 | -6/Lower Caves | Lgt. Angular Momentum Engine stolen by Master Thief 7918 | -6/Lower Caves | Power Sword stolen by Master Thief 7918 | -6/Lower Caves | Destroyed G8-DZQ(f) 7970 | -6/Lower Caves | Discovered new exit (range 5) 7981 | -6/Lower Caves | Entered Data Miner 7981 | -6/Data Miner | Discovered new exit (range 6) 8011 | -6/Data Miner | Met Data Miner 8038 | -6/Data Miner | Learned location of Section 7 (-2) 8038 | -6/Data Miner | Acquired the access code to Warlord's prototype stash 8071 | -6/Data Miner | Received God Mode back door access code from Data Miner 8106 | -6/Data Miner | Destroyed Data Miner 8108 | -6/Data Miner | Interfaced with the Data Conduit 8148 | -6/Data Miner | Found Prototype Hackware 8154 | -6/Data Miner | Found Prototype Hackware 8159 | -6/Data Miner | Found Prototype Hackware 8167 | -6/Data Miner | Core integrity fell below 50% 8172 | -6/Data Miner | Entered Proximity Caves 8174 | -5/Proximity Caves | Attracted the attention of an 0b10 checkpoint 8208 | -5/Proximity Caves | Lost 6 parts (1p3n2u) 8213 | -5/Proximity Caves | Core integrity fell below 20% 8238 | -5/Proximity Caves | Destroyed by H-66 Slayer with Gauss Rifle Last Messages --------------- 08161_ Acquired Prototype Ballistic Gun. 08163_ Enhanced Grunt overheating. 08165_ Enhanced Grunt heat damages Antimatter Reactor, Adv. Heat Sink. 08167_ Enhanced Grunt overheating. LOCATION=UNKNOWN GOAL=ESCAPE Loading 1 Factory entrance... 08174_ Y-64 Sentinel: "INTERCEPTING UNREGISTERED DERELICT." 08177_ Imp. VTOL Module destroyed. 08213_ Searching scrap... 08213_ Found Com. Matter Pod. 08213_ Found Lgt. Angular Momentum Engine. 08213_ Found 32 Matter. 08224_ Fire Trap short circuited. 08224_ Burning plasma bursts from the floor. 08234_ Corrupted VTOL Module self-destruct mechanism malfunctions. 08238_ Penetrated by Slug. Map ----- +----------------------------------------------------+ | ?????????????????????????????????????????????????? | | ?????????????????????????????????????????????????? | | ?????????????????????????????????????????????????? | | ?????????????????????????????????????????????????? | | ?????????????????????????????????????????????????? | | ?????????????????????????????????????????????????? | | ?????????????????????????????????????????????????? | | ?????????????????????????????????????????????????? | | ?????????????????????????????????????????????????? | | ?????????????????????????????????????????????????? | | ?????????????????????????????????????????????????? | | ?????????????????????????????????????????????????? | | ???#########?????????????????????????????????????? | | ???# #?????????????????????????????????????? | | ???# ##????????????????????????????????????? | | #### ###??????????????????????????????????? | | #?????#????????????????????????????? | | #?#??## ???????????????????????????? | | #### ## #### ##hh???????????????????????????? | | ???# ##????# ??????????????????????????? | | ???### ##????? ??????????????????????????? | | ????## ##?????? ????????????###??????????? | | ?#### ##??????# ????????????# ##?????????? | | ?# ##?????# ???????????# ####??????# | | ?# ##???## ######?###?# ##????## | | ?# #??## @## ### ### #???## | | ?#### #??# % ###### | | ????## ##?# ## * ! | | ?????# ##?# ???# ### = | | ????## #####??#??????# #?## ######### ##"% | | ##### #??#####??????# #### ##???????# ##" | | ##?# ##?????### ##????????# #" | | ### #???????## ##??????#### | | ## #????????# #???????# | | #????????# #####????# | | ##??###### ### ##???# | | #?## ### ## #???# # | | ## #?# #### #???## ###### | | ?## ## #?# ##?## #????##?????? | | ??# #### #?# #??# #???????????? | | ? #??# ### #??# #???????????? | | ## ? ##??# #### ##???????????? | | ?## ##???## ### #####????????????? | | ??######??????# ##?## #????????????????? | | ??????????????######???# ### #????????????????? | | ???????????????????????# #?# #????????????????? | | ???????????????????????# ##? #???????????????? | | ???????????????????????####?? ??????????????? | | ????????????????????????????? ?????????????? | | ????????????????????????????#$ ######????????????? | +----------------------------------------------------+ Best States ------------- Heat Dissipation 50 Energy Generation 15 Energy Capacity 280 Matter Stores 300 Matter Capacity 300 Sight Range 16 Robot Scan Range 20 Terrain Scan Range 16 Terrain Scan Density 10 Additional Mass Support 12 Armor Coverage 375 Resistance: KI 20 Resistance: TH 10 Core Shielding 20 Propulsion Shielding 66 Utility Shielding 66 Evasion (%) 65 Recoil Reduction 3 Kinecelleration 30 Offensive Hacking 20 Item Schematics ----------------- Flight Unit | -8/Recycling | Hacked Combat Drone Bay | -6/Data Miner | Free Lgt. Regenerative Plating | -6/Data Miner | Free Cld. Nuclear Pulse Thruster | -6/Data Miner | Free Imp. Energy Well | -6/Data Miner | Free Thunder Hammer | -6/Data Miner | Free Adv. Medium Treads | -6/Data Miner | Free Imp. Armor Integrity Analyzer | -6/Data Miner | Free Adv. Datajack | -6/Data Miner | Free Robot Schematics ------------------ E-15 Imp | -6/Data Miner | Free A-15 Conveyor | -6/Data Miner | Free G-50 Soldier | -6/Data Miner | Free G-67 Veteran | -6/Data Miner | Free R-10 Processor | -6/Data Miner | Free M-30 Cleanser | -6/Data Miner | Free Fabricated ------------ Nothing Repaired ---------- Nothing Alien Tech Used ----------------- None Achievements -------------- None Challenges ------------ None Game ------ Seed ScanInterceptDrivehammer Manual? 0 Play Time 01:08:52 Cumulative 298.9 hours Start 2025.09.17 @ 16:48:31 End 2025.09.17 @ 21:12:07 Sessions 5 Manual Loads 0 Difficulty Rogue Special Mode None Game No. 421 Rogue 421 Adventurer 0 Explorer 0 Win Type - Total 9 Types 5/0/1/2/1/0/0/0/0/0 Lore% 86 Gallery% 81 Achievement% 64 Wizard Run 0 Options --------- Layout 1 ASCII 0 Keyboard 0 Movement Mouse Keybinds 0 Fullscreen 1 Font 24/Smallcaps Map View 50x40 Zoom Use 0% Tactical HUD 1 Map Filters NONE Filters NONE Steam 1 RUN: 41e53558-aa72-437d-afd1-63f60b7b5a24